{"text_format":"3","workbook":"xlsx","n_sheets":1,"sheets":["Предмет"],"not_rendered":{"external_links":1,"defined_names":8},"read":"whole","date_system":"1900"}

{"sheet":"Предмет","index":0,"n_rows":16,"n_cols":14,"rows_kept":16}
["№","Фамилия","Имя","Отчество","Пол","Участник с ОВЗ","Класс","Класс участия","Балл","Макс. Балл","Статус","Призер МЭ прошлого года","Учитель","Место работы учителя"]
[1,3,4,5,6,8,9,10,11,12,13,14,15,16]
[1,"Виноградов","Матвей","Денисович","м","нет",9,9,80,100,"победитель",{"$f":"$F$3","v":"нет"},"Тимофеев Илья Анатольевич","МБОУ «Многопрофильная полилингвальная гимназия №180»"]
[2,"Колабинова","Дарина","Павловна","ж","нет",11,11,80,{"$f":"$J$3","v":100},"победитель","нет","Яшина Людмила Анатольевна","МБОУ «Многопрофильная полилингвальная гимназия №180»"]
[3,"Гильмутдинова","Азалия","Рашидовна","ж","нет",11,11,80,100,"победитель","нет","Яшина Людмила Анатольевна","МБОУ «Многопрофильная полилингвальная гимназия №180»"]
[4,"Игтеев ","Мурат","Маратович","м","нет",11,11,65,100,"участник","нет","Газнанов Ильдар Габдрашитович","МБОУ «Многопрофильная полилингвальная гимназия №180»"]
[5,"Закиров","Нияз","Булатович","м","нет",11,11,60,100,"участник","нет","Газнанов Ильдар Габдрашитович","МБОУ «Многопрофильная полилингвальная гимназия №180»"]
[6,"Смирнов","Никита","Ильич","м","нет",7,7,80,100,"победитель","нет","Кудряшов Вячеслав Валерьевич","МБОУ «Многопрофильная полилингвальная гимназия №180»"]
[7,"Царегородцев","Глеб","Иванович","ж","нет",7,7,70,100,"участник","нет","Кудряшов Вячеслав Валерьевич","МБОУ «Многопрофильная полилингвальная гимназия №180»"]
[8,"Семенова","София","Алексеевна","ж","нет",7,7,70,100,"победитель","нет","Кудряшов Вячеслав Валерьевич","МБОУ «Многопрофильная полилингвальная гимназия №180»"]
[9,"Стульникова","Ева","Ивановна","ж","нет",7,7,70,100,"победитель","нет","Кудряшов Вячеслав Валерьевич","МБОУ «Многопрофильная полилингвальная гимназия №180»"]
[10,"Гостева","Мария","Романовна","ж","нет",7,7,70,100,"победитель",{"$f":"$L$11","v":"нет"},"Кудряшов Вячеслав Валерьевич","МБОУ «Многопрофильная полилингвальная гимназия №180»"]
[11,"Романова","Кира","Алексеевна","ж","нет",10,10,50,100,"участник","нет","Газнанов Ильдар Габдрашитович","МБОУ «Многопрофильная полилингвальная гимназия №180»"]
[12,"Мусаева","Айсель","Эльшад-кызы","ж","нет",10,10,50,100,"участник","нет","Газнанов Ильдар Габдрашитович","МБОУ «Многопрофильная полилингвальная гимназия №180»"]
[13,"Логинова","Таисия","Игоревна","ж","нет",5,5,50,100,"участник","нет","Яшина Людмила Анатольевна","МБОУ «Многопрофильная полилингвальная гимназия №180»"]
[14,"Петухов ","Ярослав","Андреевич","м","нет",5,5,50,100,"участник","нет","Яшина Людмила Анатольевна","МБОУ «Многопрофильная полилингвальная гимназия №180»"]